fUST/lending_fUST_20251116
["ID","MTS","AMOUNT","RATE_DAILY","PERIOD"]
[394098948,1763279433366,-500.0,0.00016701,2]
[394098949,1763279433375,-500.0,0.00016701,2]
[394098950,1763279433384,-500.0,0.00016702,2]
[394098951,1763279433394,-151.0,0.00016702,2]
[394098952,1763279433404,-154.41708032,0.00016702,2]
[394098953,1763279433413,-151.0,0.00016702,2]
[394098954,1763279433423,-11513.6300558,0.00016703,2]
[394098955,1763279433432,-634.98,0.00016703,2]
[394098956,1763279433442,-168.0,0.00016745,2]
[394098957,1763279433451,-634.98,0.0001677,2]
[394098958,1763279433460,-634.98,0.0001677,2]
[394098959,1763279433469,-172.65191105,0.00016771,2]
[394098960,1763279433479,-151.0,0.00016771,2]
[394098961,1763279433488,-151.94637356,0.00016771,2]
[394098962,1763279433498,-500.0,0.00016771,2]
[394098963,1763279433508,-151.0,0.00016771,2]
[394098964,1763279433517,-152.25905184,0.00016771,2]
[394098965,1763279433526,-153.58163311,0.00016771,2]
[394098966,1763279433535,-151.0,0.00016771,2]
[394098967,1763279433545,-172.99160946,0.00016771,2]
[394098968,1763279433554,-157.9294793,0.00016771,2]
[394098969,1763279433563,-151.0,0.00016771,2]
[394098970,1763279433572,-153.7110367,0.00016771,2]
[394098971,1763279433581,-152.98786739,0.00016771,2]
[394098972,1763279433591,-500.0,0.00016772,2]
[394098973,1763279433600,-487.33888497,0.00016773,2]
[394098974,1763279433609,-500.0,0.00016773,2]
[394098975,1763279433619,-555.91363623,0.00016773,2]
[394098976,1763279433628,-500.80544391,0.00016773,2]
[394098977,1763279433637,-508.89375394,0.00016773,2]
[394098978,1763279433647,-500.87843812,0.00016773,2]
[394098979,1763279433656,-502.72992377,0.00016773,2]
[394098980,1763279433666,-495.18708248,0.00016773,2]
[394098981,1763279433675,-508.57744471,0.00016773,2]
[394098982,1763279433686,-309.2220184,0.00016773,2]
[394098983,1763279433695,-500.0,0.00016784,2]
[394098984,1763279433704,-151.0,0.00016785,2]
[394098985,1763279433714,-151.0,0.00016785,2]
[394098986,1763279433723,-449.2157698,0.00016788,2]
[394098987,1763279433732,-249.79680623,0.00016788,2]
[394098988,1763279433741,-220.27546437,0.00016788,2]
[394098989,1763279433751,-1000.0,0.00016788,2]
[394098990,1763279433760,-460.05,0.00016788,2]
[394098991,1763279433769,-634.98,0.00016788,2]
[394098992,1763279433779,-634.98,0.00016789,2]
[394098993,1763279433788,-634.98,0.00016789,2]
[394098994,1763279433797,-634.98,0.00016789,2]
[394098995,1763279433807,-634.98,0.00016789,2]
[394098996,1763279433816,-634.98,0.00016789,2]
[394098997,1763279433825,-634.98,0.00016789,2]
[394098998,1763279433835,-634.98,0.00016789,2]
[394098999,1763279433844,-634.98,0.00016789,2]
[394099000,1763279433854,-634.98,0.00016789,2]
[394099001,1763279433863,-634.98,0.00016789,2]
[394099002,1763279433873,-634.98,0.00016789,2]
[394099003,1763279433883,-310.47188971,0.00016789,2]
[394099004,1763279433896,-324.50811029,0.00016789,2]
[394099005,1763279433906,-634.98,0.00016789,2]
[394099006,1763279433915,-322.13033444,0.00016789,2]
[394099091,1763279440752,-3e-08,0.00016789,2]
[394099358,1763279443440,-500.0,0.000167,2]
[394099360,1763279443449,-500.0,0.000167,2]
[394099362,1763279443459,-650.64241278,0.000167,2]
[394099364,1763279443468,-500.0,0.000167,2]
[394099366,1763279443477,-500.0,0.000167,2]
[394099368,1763279443487,-312.84966553,0.00016789,2]
[394099370,1763279443496,-634.98,0.00016789,2]
[394099372,1763279443505,-634.98,0.00016789,2]
[394099374,1763279443514,-634.98,0.00016789,2]
[394099375,1763279443523,-634.98,0.00016789,2]
[394099377,1763279443532,-635.15469376,0.00016789,2]
[394099379,1763279443542,-155.521175,0.0001679,2]
[394099381,1763279443551,-12.01205297,0.00016804,2]
[394099383,1763279443562,-972.98794703,0.00016804,2]
[394099385,1763279443571,-4499.0,0.00016836,2]
[394099387,1763279443580,-151.0,0.00016839,2]
[394099389,1763279443589,-3036.8564436,0.00016893,2]
[394099391,1763279443598,-164.2237678,0.000169,2]
[394099393,1763279443608,-151.0,0.00016908,2]
[394099395,1763279443617,-607.1370732,0.00016908,2]
[394099397,1763279443626,-151.0,0.00016908,2]
[394099399,1763279443635,-151.0,0.00016908,2]
[394099401,1763279443644,-134.13601773,0.00016908,2]
[394099706,1763279446798,-500.0,0.000167,2]
[394099708,1763279446807,-310.54854394,0.000167,2]
[394099710,1763279446816,-187.89023092,0.000167,2]
[394099867,1763279986551,1349.39831762,0.00015972,2]
[394099871,1763280025619,5000.0,0.00015979,2]
[394099872,1763280048994,3650.61168238,0.00015979,2]
[394099873,1763280049020,1349.38831762,0.00015979,2]
[394099874,1763280127511,-349.51913986,0.00015829,2]
[394099875,1763280127536,-20.29331543,0.000159,2]
[394099876,1763280213290,281.5533925,0.00015889,2]
[394099877,1763280233672,4076.5,0.00032,120]
[394099878,1763280290613,2431.1078562,0.00015398,2]
[394099879,1763280403125,-173.21905322,0.000159,2]
[394099880,1763280403146,-500.0,0.00015989,2]
[394099881,1763280403167,-5218.7206125,0.0001599,2]
[394099882,1763280403188,-1200.0,0.00016071,2]
[394099883,1763280403208,-2766.76959618,0.00016072,2]
[394099884,1763280403230,-300.0,0.00016183,2]
[394099885,1763280403253,-168.0,0.00016184,2]
[394099886,1763280403272,-300.0,0.00016229,2]
[394099887,1763280403293,-300.0,0.00016229,2]
[394099888,1763280403312,-300.0,0.00016229,2]
[394099889,1763280403332,-1162.99143293,0.0001623,2]
[394099891,1763280541180,150.0,0.00032873,120]
[394099892,1763280563115,-336.96338532,0.000159,2]
[394099893,1763280565766,-320.24919992,0.000159,2]
[394099894,1763280587430,1000.0,0.00017592,5]
[394099938,1763280632426,-142.78741476,0.000159,2]
[394099940,1763280632436,-189.64212128,0.00016272,2]
[394099942,1763280632445,-1014.0,0.00016313,2]
[394099944,1763280632455,-64.29554785,0.00016335,2]
[394099946,1763280632466,-841.6034007,0.00016335,2]
[394099948,1763280632477,-366.13800148,0.00016335,2]
[394099950,1763280632486,-275.46818825,0.00016387,2]
[394099952,1763280632495,-310.36570571,0.00016387,2]
[394099954,1763280632505,-300.0,0.00016387,2]
[394099956,1763280632514,-1200.0,0.00016387,2]
[394099958,1763280632524,-189728.02810456,0.00016388,2]
[394099960,1763280632534,-103783.66922886,0.00016388,2]
[394100080,1763280638313,-500.0,0.00016387,2]
[394100081,1763280638323,-389.99479004,0.00016387,2]
[394100082,1763280638333,-137.94332909,0.00016387,2]
[394100083,1763280638344,-294.54076015,0.00016387,2]
[394100084,1763280638356,-67.51591076,0.00016387,2]
[394100085,1763280638366,-500.0,0.00016387,2]
[394100086,1763280638375,-229.61534379,0.00016387,2]
[394100087,1763280638472,-270.38465621,0.00016387,2]
[394100088,1763280638481,-500.0,0.00016387,2]
[394100089,1763280638491,-500.0,0.00016387,2]
[394100091,1763280638505,-500.0,0.00016387,2]
[394100092,1763280638521,-500.68099154,0.00016387,2]
[394100093,1763280638535,-500.0,0.00016387,2]
[394100094,1763280638548,-500.0,0.00016387,2]
[394100095,1763280638560,-500.0,0.00016387,2]
[394100096,1763280638573,-500.0,0.00016387,2]
[394100097,1763280638587,-500.0,0.00016387,2]
[394100098,1763280638601,-500.0,0.00016387,2]
[394100099,1763280638614,-500.0,0.00016387,2]
[394100100,1763280638627,-500.0,0.00016387,2]
[394100101,1763280638641,-500.0,0.00016387,2]
[394100102,1763280638656,-500.0,0.00016387,2]
[394100103,1763280638670,-500.0,0.00016387,2]
[394100104,1763280638682,-500.0,0.00016387,2]
[394100105,1763280638695,-500.0,0.00016387,2]
[394100106,1763280638707,-500.0,0.00016387,2]
[394100107,1763280638719,-500.0,0.00016387,2]
[394100108,1763280638733,-281.90202844,0.00016387,2]
[394100194,1763280640573,-218.09797156,0.00016387,2]
[394100197,1763280640586,-500.0,0.00016387,2]
[394100201,1763280640598,-500.0,0.00016387,2]
[394100203,1763280640612,-500.0,0.00016387,2]
[394100205,1763280640623,-500.0,0.00016387,2]
[394100208,1763280640637,-500.0,0.00016387,2]
[394100210,1763280640651,-500.0,0.00016387,2]
[394100213,1763280640666,-500.0,0.00016387,2]
[394100216,1763280640680,-500.0,0.00016387,2]
[394100218,1763280640691,-500.0,0.00016387,2]
[394100220,1763280640702,-500.0,0.00016387,2]
[394100223,1763280640714,-500.0,0.00016387,2]
[394100225,1763280640727,-500.0,0.00016387,2]
[394100228,1763280640742,-500.0,0.00016387,2]
[394100230,1763280640756,-500.0,0.00016387,2]
[394100232,1763280640766,-500.0,0.00016387,2]
[394100234,1763280640777,-500.0,0.00016387,2]
[394100236,1763280640788,-500.0,0.00016387,2]
[394100239,1763280640799,-500.0,0.00016387,2]
[394100241,1763280640810,-500.0,0.00016387,2]
[394100243,1763280640821,-500.0,0.00016387,2]
[394100245,1763280640831,-500.0,0.00016387,2]
[394100247,1763280640841,-500.0,0.00016387,2]
[394100250,1763280640853,-500.0,0.00016387,2]
[394100252,1763280640864,-633.483597,0.00016387,2]
[394100254,1763280640875,-500.0,0.00016387,2]
[394100256,1763280640886,-500.0,0.00016387,2]
[394100259,1763280640898,-500.0,0.00016387,2]
[394100261,1763280640909,-500.0,0.00016387,2]
[394100263,1763280640920,-500.0,0.00016387,2]
[394100265,1763280640930,-500.0,0.00016387,2]
[394100267,1763280640941,-500.0,0.00016387,2]
[394100270,1763280640953,-500.0,0.00016387,2]
[394100272,1763280640964,-500.0,0.00016387,2]
[394100274,1763280640975,-336.97815727,0.00016387,2]
[394100276,1763280640986,-7393.20027414,0.00016388,2]
[394100326,1763280643785,-62736.43024353,0.00016388,2]
[394100327,1763280643889,-1376.63341054,0.00016388,2]
[394100328,1763280646696,-23131.0229,0.00016388,2]
[394100329,1763280646712,-4815.95033797,0.00016388,2]
[394100330,1763280646724,-84712.95141125,0.00016388,2]
[394100331,1763280646735,-3128.2,0.00016388,2]
[394100332,1763280646926,-422.748628,0.00016388,2]
[394100333,1763280646937,-165433.59599811,0.00016388,2]
[394100334,1763280646967,-29172.82939666,0.00016388,2]
[394100335,1763280646977,-623.89357415,0.00016388,2]
[394100336,1763280646989,-994.18060068,0.00016388,2]
[394100337,1763280647000,-1497.25668317,0.00016388,2]
[394100339,1763280704563,189.63492802,0.00017963,4]
[394100340,1763280837534,396.78414335,0.00016236,2]
[394100341,1763280838990,188.86127974,0.00016236,2]
[394100342,1763280841208,1400.06216671,0.00018018,4]
[394100343,1763280870211,188.86127973,0.00016261,2]
[394100344,1763280882441,158.11891454,0.00016285,2]
[394100345,1763280885356,1484.65384807,0.00016288,2]
[394100346,1763280887408,158.11891453,0.00016286,2]
[394100347,1763280900178,188.86127973,0.00016286,2]
[394100350,1763280973947,3521.74173117,0.00016285,2]
[394100353,1763281002814,265.64468116,0.00018242,4]
[394100354,1763281047886,997.25702826,0.00016277,2]
[394100355,1763281186646,1000.0,0.00017569,5]
[394100356,1763281197542,605.21989056,0.00032877,120]
[394100357,1763281225513,1187.72307844,0.00016288,2]
[394100358,1763281255221,3081.5240148,0.00016282,2]
[394100359,1763281306457,1000.0,0.0003277,120]
[394100360,1763281345422,1000.0,0.0003277,120]
[394100361,1763281369914,2028.9825987,0.00015912,2]
[394100362,1763281370096,3701.78030806,0.00016027,2]
[394100363,1763281370123,48.43228613,0.00016027,2]
[394100367,1763281446680,353.93,0.00032811,120]
[394100370,1763281535682,3039.66432775,0.0001628,2]
[394100371,1763281548770,2365.54,0.00032877,120]
[394100376,1763281565761,1108.42136454,0.00016288,2]
[394100377,1763281567965,5803.49202158,0.00016282,2]
[394100378,1763281567997,10000.01,0.00016282,2]
[394100379,1763281568028,10000.01,0.00016282,2]
[394100380,1763281568061,10000.01,0.00016282,2]
[394100382,1763281597875,5888.0,0.0001865,3]
[394100383,1763281600673,5888.0,0.0001865,3]
[394100384,1763281621808,151.86,5e-05,2]
[394100385,1763281660984,-385.82219974,0.0001595,2]
[394100386,1763281676390,-937.0,0.00015989,2]
[394100387,1763281677421,-6377.5708124,0.0001599,2]
[394100388,1763281677537,-10000.01,0.0001599,2]
[394100389,1763281677681,-10000.01,0.0001599,2]
[394100390,1763281679327,-10000.01,0.0001599,2]
[394100391,1763281679442,-10000.01,0.0001599,2]
[394100392,1763281679564,-10000.01,0.0001599,2]
[394100393,1763281679705,-10000.01,0.0001599,2]
[394100394,1763281679822,-10000.01,0.0001599,2]
[394100395,1763281679931,-10000.01,0.0001599,2]
[394100396,1763281680047,-10000.01,0.0001599,2]
[394100397,1763281682605,-3622.3391876,0.0001599,2]
[394100398,1763281685618,-500.0,0.00016281,2]
[394100399,1763281685648,-276.80752194,0.00016281,2]
[394100400,1763281685679,-249.80830134,0.00016281,2]
[394100401,1763281685717,-500.0,0.00016281,2]
[394100402,1763281685750,-500.0,0.00016281,2]
[394100403,1763281685781,-500.0,0.00016281,2]
[394100404,1763281685812,-500.0,0.00016281,2]
[394100405,1763281685842,-500.0,0.00016281,2]
[394100406,1763281685872,-500.0,0.00016281,2]
[394100407,1763281685903,-500.0,0.00016281,2]
[394100408,1763281685934,-446.77835344,0.00016281,2]
[394100409,1763281686071,-53.22164656,0.00016281,2]
[394100410,1763281686105,-500.0,0.00016281,2]
[394100411,1763281686134,-500.0,0.00016281,2]
[394100412,1763281686165,-500.0,0.00016281,2]
[394100413,1763281686196,-500.0,0.00016281,2]
[394100414,1763281686227,-500.0,0.00016281,2]
[394100415,1763281686255,-500.0,0.00016281,2]
[394100416,1763281686287,-451.65998441,0.00016281,2]
[394100417,1763281686318,-500.0,0.00016281,2]
[394100418,1763281686349,-500.0,0.00016281,2]
[394100419,1763281686380,-490.24673806,0.00016281,2]
[394100420,1763281686481,-9.75326194,0.00016281,2]
[394100421,1763281686608,-500.0,0.00016281,2]
[394100422,1763281686641,-500.0,0.00016281,2]
[394100423,1763281686671,-500.0,0.00016281,2]
[394100424,1763281686703,-500.0,0.00016281,2]
[394100425,1763281686732,-576.53115764,0.00016281,2]
[394100426,1763281686764,-500.0,0.00016281,2]
[394100427,1763281686796,-500.0,0.00016281,2]
[394100428,1763281686827,-500.0,0.00016281,2]
[394100429,1763281686856,-500.0,0.00016281,2]
[394100430,1763281686887,-327.44116084,0.00016281,2]
[394100431,1763281686922,-172.55883916,0.00016281,2]
[394100432,1763281686951,-500.0,0.00016281,2]
[394100433,1763281686981,-500.0,0.00016281,2]
[394100434,1763281687010,-500.0,0.00016281,2]
[394100435,1763281687040,-500.0,0.00016281,2]
[394100436,1763281687070,-500.0,0.00016281,2]
[394100437,1763281687102,-500.0,0.00016281,2]
[394100438,1763281687133,-500.0,0.00016281,2]
[394100439,1763281687163,-500.0,0.00016281,2]
[394100440,1763281687194,-500.0,0.00016281,2]
[394100441,1763281687224,-154.89232168,0.00016281,2]
[394100442,1763281687343,-345.10767832,0.00016281,2]
[394100443,1763281687376,-500.0,0.00016281,2]
[394100444,1763281687414,-500.0,0.00016281,2]
[394100445,1763281687445,-500.0,0.00016281,2]
[394100446,1763281687477,-500.0,0.00016281,2]
[394100447,1763281687514,-500.0,0.00016281,2]
[394100448,1763281687546,-500.0,0.00016281,2]
[394100449,1763281687577,-500.0,0.00016281,2]
[394100450,1763281687611,-500.0,0.00016281,2]
[394100451,1763281687648,-500.0,0.00016281,2]
[394100452,1763281687785,-500.0,0.00016281,2]
[394100453,1763281687819,-500.0,0.00016281,2]
[394100454,1763281687861,-500.0,0.00016281,2]
[394100455,1763281687898,-500.0,0.00016281,2]
[394100456,1763281687929,-500.0,0.00016281,2]
[394100457,1763281687961,-500.0,0.00016281,2]
[394100458,1763281687998,-500.0,0.00016281,2]
[394100459,1763281688031,-500.0,0.00016281,2]
[394100460,1763281688064,-500.0,0.00016281,2]
[394100461,1763281688106,-500.0,0.00016281,2]
[394100462,1763281688190,-500.0,0.00016281,2]
[394100463,1763281688302,-500.0,0.00016281,2]
[394100464,1763281688343,-500.0,0.00016281,2]
[394100465,1763281688383,-500.0,0.00016281,2]
[394100466,1763281688419,-500.0,0.00016281,2]
[394100467,1763281688453,-500.0,0.00016281,2]
[394100468,1763281688487,-500.0,0.00016281,2]
[394100469,1763281688527,-500.0,0.00016281,2]
[394100470,1763281688569,-500.0,0.00016281,2]
[394100471,1763281688605,-500.0,0.00016281,2]
[394100472,1763281688693,-500.0,0.00016281,2]
[394100473,1763281688728,-500.0,0.00016281,2]
[394100474,1763281688763,-500.0,0.00016281,2]
[394100475,1763281688802,-500.0,0.00016281,2]
[394100476,1763281688838,-500.0,0.00016281,2]
[394100477,1763281688877,-500.0,0.00016281,2]
[394100478,1763281688909,-500.0,0.00016281,2]
[394100479,1763281688948,-500.0,0.00016281,2]
[394100480,1763281688980,-500.0,0.00016281,2]
[394100481,1763281689020,-500.0,0.00016281,2]
[394100482,1763281689106,-500.0,0.00016281,2]
[394100483,1763281689139,-500.0,0.00016281,2]
[394100484,1763281689179,-500.0,0.00016281,2]
[394100485,1763281689212,-500.0,0.00016281,2]
[394100486,1763281689260,-500.0,0.00016281,2]
[394100487,1763281689303,-500.0,0.00016281,2]
[394100488,1763281689355,-500.0,0.00016281,2]
[394100489,1763281689405,-500.0,0.00016281,2]
[394100490,1763281689449,-500.0,0.00016281,2]
[394100491,1763281689497,-492.05272045,0.00016281,2]
[394100492,1763281689689,-15.9045591,0.00016281,2]
[394100493,1763281689732,-500.0,0.00016281,2]
[394100494,1763281689773,-500.0,0.00016281,2]
[394100495,1763281689817,-500.0,0.00016281,2]
[394100496,1763281689861,-500.0,0.00016281,2]
[394100497,1763281689901,-500.0,0.00016281,2]
[394100498,1763281689946,-500.0,0.00016281,2]
[394100499,1763281689990,-500.0,0.00016281,2]
[394100500,1763281690027,-500.0,0.00016281,2]
[394100501,1763281690066,-500.0,0.00016281,2]
[394100502,1763281690112,-468.2008818,0.00016281,2]
[394100503,1763281691378,-31.7991182,0.00016281,2]
[394100504,1763281691411,-270.7600751,0.00016281,2]
[394100505,1763281691450,-500.0,0.00016281,2]
[394100506,1763281691482,-500.0,0.00016281,2]
[394100507,1763281691520,-500.0,0.00016281,2]
[394100508,1763281691559,-500.0,0.00016281,2]
[394100509,1763281691594,-500.0,0.00016281,2]
[394100510,1763281691630,-500.0,0.00016281,2]
[394100511,1763281691666,-500.0,0.00016281,2]
[394100512,1763281691702,-500.0,0.00016281,2]
[394100513,1763281691737,-500.0,0.00016281,2]
[394100514,1763281691976,-500.0,0.00016281,2]
[394100515,1763281692013,-500.0,0.00016281,2]
[394100516,1763281692050,-500.0,0.00016281,2]
[394100517,1763281692083,-500.0,0.00016281,2]
[394100518,1763281692119,-500.0,0.00016281,2]
[394100520,1763281692152,-500.0,0.00016281,2]
[394100521,1763281692185,-500.0,0.00016281,2]
[394100522,1763281692217,-450.0,0.00016281,2]
[394100523,1763281692248,-500.0,0.00016281,2]
[394100524,1763281692279,-500.0,0.00016281,2]
[394100525,1763281692407,-500.0,0.00016281,2]
[394100526,1763281692439,-500.0,0.00016281,2]
[394100527,1763281692471,-500.0,0.00016281,2]
[394100528,1763281692509,-1669.46002784,0.00016281,2]
[394100529,1763281692548,-1669.46002784,0.00016281,2]
[394100530,1763281693293,-1669.46002784,0.00016281,2]
[394100531,1763281693329,-1669.46002784,0.00016281,2]
[394100532,1763281693365,-1652.7098608,0.00016281,2]
[394100533,1763281693469,-16.75016704,0.00016281,2]
[394100534,1763281693508,-1669.46002784,0.00016281,2]
[394100535,1763281693545,-1669.46002784,0.00016281,2]
[394100536,1763281693583,-1619.20952672,0.00016281,2]
[394100537,1763281693671,-50.25050112,0.00016281,2]
[394100538,1763281693707,-1669.46002784,0.00016281,2]
[394100539,1763281693745,-1669.46002784,0.00016281,2]
[394100540,1763281693787,-1552.20885856,0.00016281,2]
[394100541,1763281693865,-117.25116928,0.00016281,2]
[394100542,1763281694001,-1669.46002784,0.00016281,2]
[394100543,1763281694037,-1669.46002784,0.00016281,2]
[394100544,1763281694071,-1418.20752224,0.00016281,2]
[394100545,1763281694186,-251.2525056,0.00016281,2]
[394100546,1763281694225,-1669.46002784,0.00016281,2]
[394100547,1763281694260,-1669.46002784,0.00016281,2]
[394100548,1763281694295,-1150.2048496,0.00016281,2]
[394100549,1763281695365,-519.25517824,0.00016281,2]
[394100550,1763281695374,-625.17853769,0.00016281,2]
[394100551,1763281695390,-1044.28149015,0.00016281,2]
[394100552,1763281695400,-625.17853769,0.00016281,2]
[394100553,1763281695445,-1044.28149015,0.00016281,2]
[394100556,1763281695483,-1669.46002784,0.00016281,2]
[394100557,1763281695521,-1669.46002784,0.00016281,2]
[394100558,1763281695569,-1669.46002784,0.00016281,2]
[394100559,1763281695605,-1669.46002784,0.00016281,2]
[394100560,1763281695644,-1652.7098608,0.00016281,2]
[394100561,1763281695690,-16.75016704,0.00016281,2]
[394100562,1763281695727,-1669.46002784,0.00016281,2]
[394100563,1763281695763,-1669.46002784,0.00016281,2]
[394100564,1763281695799,-1619.20952672,0.00016281,2]
[394100565,1763281695838,-50.25050112,0.00016281,2]
[394100566,1763281695875,-1669.46002784,0.00016281,2]
[394100567,1763281695911,-1669.46002784,0.00016281,2]
[394100568,1763281695949,-1552.20885856,0.00016281,2]
[394100569,1763281695991,-117.25116928,0.00016281,2]
[394100570,1763281696028,-1669.46002784,0.00016281,2]
[394100571,1763281696063,-1669.46002784,0.00016281,2]
[394100572,1763281696104,-1418.20752224,0.00016281,2]
[394100573,1763281696161,-251.2525056,0.00016281,2]
[394100574,1763281696197,-1669.46002784,0.00016281,2]
[394100575,1763281696232,-1669.46002784,0.00016281,2]
[394100576,1763281696269,-1150.2048496,0.00016281,2]
[394100577,1763281696792,-518.90640178,0.00016281,2]
[394100578,1763281696812,-0.34877646,0.00016281,2]
[394100579,1763281696821,-1669.11125138,0.00016281,2]
[394100580,1763281697889,-0.34877645,0.00016281,2]
[394100581,1763281697927,-1669.46002783,0.00016281,2]
[394100582,1763281697963,-1669.46002783,0.00016281,2]
[394100583,1763281697998,-1652.01230795,0.00016281,2]
[394100584,1763281698070,-17.44771988,0.00016281,2]
[394100586,1763281700767,-1669.46002783,0.00016281,2]
[394100587,1763281700804,-1669.46002783,0.00016281,2]
[394100588,1763281700840,-1652.70986085,0.00016281,2]
[394100589,1763281700893,-16.75016698,0.00016281,2]
[394100590,1763281700933,-1669.46002783,0.00016281,2]
[394100591,1763281700969,-1669.46002783,0.00016281,2]
[394100592,1763281701007,-1652.70986085,0.00016281,2]
[394100593,1763281701082,-16.75016698,0.00016281,2]
[394100594,1763281701121,-1669.46002783,0.00016281,2]
[394100595,1763281701157,-1669.46002783,0.00016281,2]
[394100596,1763281701195,-1619.20952689,0.00016281,2]
[394100597,1763281701299,-50.25050094,0.00016281,2]
[394100598,1763281701308,-16.75016698,0.00016281,2]
[394100599,1763281701350,-1652.70986085,0.00016281,2]
[394100600,1763281701388,-1669.46002783,0.00016281,2]
[394100601,1763281701426,-1669.46002783,0.00016281,2]
[394100602,1763281701478,-1669.46002783,0.00016281,2]
[394100603,1763281701516,-1669.46002783,0.00016281,2]
[394100605,1763281709113,3322.16988868,0.00015,2]
[394100606,1763281709137,6159.63509784,0.00015,2]
[394100607,1763281709226,3840.37490216,0.00016281,2]
[394100608,1763281709251,1159.62509784,0.00016281,2]
[394100611,1763281720197,1047.0,0.00032877,120]
[394100612,1763281720660,9583.86928314,0.00014,2]
[394100615,1763281740997,150.0,0.00032876,120]
[394100616,1763281746721,872.80790398,0.00018175,4]
[394100625,1763281773096,-151.0,0.000149,2]
[394100626,1763281779367,94.70506985,0.00015251,2]
[394100627,1763281786317,1000.0,0.00017622,5]
[394100628,1763281794306,-333.50220872,0.00015251,2]
[394100629,1763281800620,-286.28928722,0.00015251,2]
[394100630,1763281802628,-306.94444625,0.00015251,2]
[394100631,1763281804602,-173.21374517,0.00015251,2]
[394100632,1763281807092,-179.75080008,0.00015251,2]
[394100633,1763281809741,-307.29441956,0.0001525,2]
[394100634,1763281814810,-262.08589839,0.0001525,2]
[394100635,1763281817279,-326.78625483,0.0001525,2]
[394100636,1763281821825,-290.32066767,0.0001525,2]
[394100637,1763281825800,-13.51275955,0.0001525,2]
[394100638,1763281825822,-220.00048767,0.00015251,2]
[394100660,1763281832756,-8853.82504334,0.00015251,2]
[394100661,1763281832862,-151.0,0.000155,2]
[394100662,1763281832871,-300.0,0.00015999,2]
[394100663,1763281832881,-300.0,0.00015999,2]
[394100664,1763281832891,-151.0,0.00016,2]
[394100665,1763281832900,-5099.92218902,0.00016119,2]
[394100666,1763281832911,-5200.07781098,0.00016119,2]
[394100667,1763281832921,-160.0,0.00016119,2]
[394100668,1763281832930,-2659.70628679,0.00016195,2]
[394100669,1763281832939,-500.0,0.00016281,2]
[394100670,1763281832948,-500.0,0.00016281,2]
[394100671,1763281832957,-587.99943248,0.00016281,2]
[394100672,1763281832967,-500.0,0.00016281,2]
[394100673,1763281832976,-304.03138045,0.00016281,2]
[394100674,1763281832986,-90683.89088393,0.00016282,2]
[394100675,1763281832998,-191923.62755138,0.00016282,2]
[394100699,1763281838474,-1441.96652487,0.00016282,2]
[394100773,1763281840813,-3e-08,0.00016282,2]
[394100828,1763281846736,-1628.85141834,0.00016282,2]
[394100829,1763281846747,-853.79934507,0.00016282,2]
[394100832,1763281923995,578.11236496,0.00018212,4]
[394100833,1763282152529,-462.50658697,0.00015321,2]
[394100834,1763282212534,-197.28475644,0.00015152,2]
[394100835,1763282216587,-115.84218661,0.00015152,2]
[394100836,1763282216615,-184.15781339,0.00015152,2]
[394100837,1763282287485,-173.70155009,0.00014851,2]
[394100838,1763282287506,-147.77982158,0.00015001,2]
[394100839,1763282289997,-25.92172851,0.00015001,2]
[394100840,1763282290017,-135.39039394,0.00015152,2]
[394100841,1763282346651,2740.40987331,0.00015001,2]
[394100842,1763282347308,-38.31115615,0.00015152,2]
[394100843,1763282347330,-261.68884385,0.00015152,2]
[394100844,1763282349784,-188.66094234,0.00015152,2]